[Event "SixDays Budapest IM-A 09-2024"]
[Site "Budapest"]
[Date "2024.09.27"]
[Round "1"]
[White "Pacher, Milan"]
[Black "Ramsdal, Jens Albert"]
[Result "1-0"]
[ECO "B22"]
[WhiteElo "2343"]
[BlackElo "2328"]
[Annotator "ChessBase"]
[PlyCount "123"]
[EventDate "2024.09.24"]
[EventType "tourn"]
[EventCountry "HUN"]
[SourceTitle "playchess.com"]
[Source "ChessBase"]
[SourceQuality "1"]
[TimeControl "5400+30"]

1. e4 {[%emt 0:00:03]} c5 {[%emt 0:01:24]} 2. c3 {[%emt 0:00:06]} Nf6 {[%emt 0:00:44]} 3. e5 {[%emt 0:00:03]} Nd5 {[%emt 0:00:06]} 4. d4 {[%emt 0:00:03]} d6 {[%emt 0:00:59]} 5. Nf3 {[%emt 0:01:02]} cxd4 {[%emt 0:02:43]} 6. Qxd4 {[%emt 0:00:10]} e6 {[%emt 0:03:44]} 7. exd6 {[%emt 0:01:24]} Qxd6 {[%emt 0:02:26]} 8. Bb5+ {[%emt 0:01:21]} Bd7 {[%emt 0:01:07]} 9. Na3 {[%emt 0:00:06]} Qc5 {[%emt 0:04:28]} 10. Bxd7+ {[%emt 0:04:22]} Nxd7 {[%emt 0:00:16]} 11. Nc2 {[%emt 0:00:10]} Be7 {[%emt 0:10:38]} 12. c4 {[%emt 0:04:05]} N5b6 {[%emt 0:04:38]} 13. b3 {[%emt 0:00:45]} Qh5 {[%emt 0:06:56]} 14. Qe4 {[%emt 0:06:07]} Bf6 {[%emt 0:10:03]} 15. Ncd4 {[%emt 0:00:07]} O-O {[%emt 0:11:11]} 16. O-O {[%emt 0:02:27]} Rfd8 {[%emt 0:03:27]} 17. Be3 {[%emt 0:03:24]} Nc5 {[%emt 0:09:57]} 18. Qc2 {[%emt 0:00:04]} e5 {[%emt 0:03:02]} 19. Ne2 {[%emt 0:03:36]} e4 {[%emt 0:00:39]} 20. Ng3 {[%emt 0:02:02]} Qg4 {[%emt 0:01:45]} 21. Bxc5 {[%emt 0:07:09]} Bxa1 {[%emt 0:00:14]} 22. Nxe4 {[%emt 0:00:38]} f5 {[%emt 0:06:08]} 23. Neg5 {[%emt 0:02:03]} Bf6 {[%emt 0:00:31]} 24. h3 {[%emt 0:00:20]} Qh5 {[%emt 0:04:49]} 25. Qxf5 {[%emt 0:00:06]} Bxg5 {[%emt 0:04:10]} 26. Nxg5 {[%emt 0:00:03]} Qg6 {[%emt 0:00:14]} 27. Qxg6 {[%emt 0:00:58]} hxg6 28. Be3 {[%emt 0:00:10]} Re8 {[%emt 0:02:28]} 29. a4 {[%emt 0:00:38]} Rad8 {[%emt 0:00:02]} 30. a5 {[%emt 0:01:45]} Nc8 {[%emt 0:00:01]} 31. a6 {[%emt 0:00:04]} bxa6 {[%emt 0:00:17]} 32. Ra1 {[%emt 0:00:18]} Rd6 {[%emt 0:01:34]} 33. c5 {[%emt 0:00:07]} Rd5 {[%emt 0:02:27]} 34. h4 {[%emt 0:00:27]} Ne7 {[%emt 0:00:01]} 35. Ne6 {[%emt 0:06:33]} Rc8 {[%emt 0:01:32]} 36. b4 {[%emt 0:02:48]} Nf5 {[%emt 0:00:50]} 37. Rxa6 {[%emt 0:00:41]} Rd1+ {[%emt 0:02:23]} 38. Kh2 {[%emt 0:00:02]} Rb1 {[%emt 0:00:51]} 39. Rxa7 {[%emt 0:07:04]} Rxb4 {[%emt 0:00:03]} 40. Bg5 {[%emt 0:00:07]} Rc4 {[%emt 0:00:21]} 41. Kh3 {[%emt 0:08:39]} Re8 {[%emt 0:00:08]} 42. Ra6 {[%emt 0:00:25]} Kh7 {[%emt 0:01:16]} 43. g4 {[%emt 0:01:12]} Nd4 {[%emt 0:00:11]} 44. Nxd4 {[%emt 0:01:11]} Rxd4 {[%emt 0:00:02]} 45. Ra7 {[%emt 0:00:56]} Rd3+ {[%emt 0:00:41]} 46. Kg2 {[%emt 0:00:07]} Re4 {[%emt 0:00:38]} 47. f3 {[%emt 0:00:34]} Re2+ {[%emt 0:00:09]} 48. Kg3 {[%emt 0:00:04]} Re6 {[%emt 0:00:17]} 49. Bf4 {[%emt 0:01:48]} Rc3 {[%emt 0:00:16]} 50. Rc7 {[%emt 0:00:33]} Rf6 {[%emt 0:01:14]} 51. g5 {[%emt 0:01:27]} Rf5 {[%emt 0:00:28]} 52. c6 {[%emt 0:00:05]} Rf8 {[%emt 0:01:18]} 53. Be5 {[%emt 0:00:26]} Rcxf3+ {[%emt 0:00:26]} 54. Kg4 {[%emt 0:00:05]} R3f7 {[%emt 0:00:36]} 55. Rxf7 {[%emt 0:00:06]} Rxf7 {[%emt 0:00:01]} 56. c7 {[%emt 0:00:06]} Rf8 {[%emt 0:00:01]} 57. Bd6 {[%emt 0:00:08]} Ra8 {[%emt 0:00:22]} 58. Kf4 {[%emt 0:00:05]} Ra4+ {[%emt 0:01:38]} 59. Ke5 {[%emt 0:00:03]} Rxh4 {[%emt 0:00:32]} 60. Ke6 {[%emt 0:03:23]} Rd4 {[%emt 0:00:33]} 61. c8=Q {[%emt 0:00:51]} Rxd6+ {[%emt 0:00:02]} 62. Kf7 {[%emt 0:00:14]} 1-0

[Event "SixDays Budapest IM-A 09-2024"]
[Site "Budapest"]
[Date "2024.09.27"]
[Round "1"]
[White "Kao, Jamison Edrich"]
[Black "Krishna C R G"]
[Result "1-0"]
[ECO "C18"]
[WhiteElo "2125"]
[BlackElo "2425"]
[Annotator "ChessBase"]
[PlyCount "65"]
[EventDate "2024.09.24"]
[EventType "tourn"]
[EventCountry "HUN"]
[SourceTitle "playchess.com"]
[Source "ChessBase"]
[SourceQuality "1"]
[TimeControl "5400+30"]

1. e4 {[%emt 0:00:04]} e6 {[%emt 0:00:02]} 2. d4 {[%emt 0:00:04]} d5 {[%emt 0:00:05]} 3. Nc3 {[%emt 0:00:15]} Bb4 {[%emt 0:00:03]} 4. e5 {[%emt 0:00:09]} c5 {[%emt 0:00:02]} 5. a3 {[%emt 0:00:07]} Bxc3+ {[%emt 0:00:03]} 6. bxc3 {[%emt 0:00:02]} Qa5 {[%emt 0:00:11]} 7. Bd2 {[%emt 0:00:05]} Qa4 {[%emt 0:00:02]} 8. Qg4 {[%emt 0:00:20]} Kf8 {[%emt 0:00:02]} 9. h4 {[%emt 0:00:17]} Nc6 {[%emt 0:00:06]} 10. h5 {[%emt 0:02:02]} h6 {[%emt 0:00:31]} 11. Qd1 {[%emt 0:02:02]} Nge7 {[%emt 0:11:20]} 12. Nf3 {[%emt 0:01:57]} b6 {[%emt 0:02:23]} 13. Rh4 {[%emt 0:00:42]} cxd4 {[%emt 0:00:02]} 14. Rb1 {[%emt 0:01:36]} Nf5 {[%emt 0:05:00]} 15. Bb5 {[%emt 0:03:59]} Qxa3 {[%emt 0:01:20]} 16. Bxc6 {[%emt 0:00:38]} Nxh4 {[%emt 0:07:31]} 17. Bxa8 {[%emt 0:01:26]} dxc3 {[%emt 0:00:02]} 18. Nxh4 {[%emt 0:00:41]} cxd2+ {[%emt 0:00:02]} 19. Qxd2 {[%emt 0:00:07]} Ke7 {[%emt 0:00:01]} 20. Bc6 {[%emt 0:03:53]} Kd8 {[%emt 0:05:33]} 21. Nf3 {[%emt 0:02:20]} Kc7 {[%emt 0:00:01]} 22. Nd4 {[%emt 0:01:02]} Qc5 {[%emt 0:05:30]} 23. Rb3 {[%emt 0:07:26]} Ba6 {[%emt 0:00:02]} 24. Bb5 {[%emt 0:04:34]} Bxb5 {[%emt 0:00:01]} 25. Nxb5+ {[%emt 0:00:18]} Kb8 {[%emt 0:00:02]} 26. Nd6 {[%emt 0:02:01]} f6 {[%emt 0:01:15]} 27. Rc3 {[%emt 0:03:44]} Qa5 {[%emt 0:00:17]} 28. exf6 {[%emt 0:02:16]} gxf6 {[%emt 0:00:01]} 29. Kf1 {[%emt 0:01:17]} Qa4 {[%emt 0:35:04]} 30. g3 {[%emt 0:02:50]} Rg8 {[%emt 0:17:04]} 31. Qd3 {[%emt 0:00:36]} Qd7 {[%emt 0:09:27]} 32. Nb5 {[%emt 0:01:38]} Qf7 {[%emt 0:02:53]} 33. Kg2 {[%emt 0:01:31]} 1-0

[Event "SixDays Budapest IM-A 09-2024"]
[Site "Budapest"]
[Date "2024.09.27"]
[Round "1"]
[White "Bashylina, Luisa"]
[Black "Bashirov, Kemal"]
[Result "1-0"]
[ECO "E24"]
[WhiteElo "2124"]
[BlackElo "2328"]
[Annotator "ChessBase"]
[PlyCount "69"]
[EventDate "2024.09.24"]
[EventType "tourn"]
[EventCountry "HUN"]
[SourceTitle "playchess.com"]
[Source "ChessBase"]
[SourceQuality "1"]
[TimeControl "5400+30"]

1. d4 {[%emt 0:00:02]} Nf6 {[%emt 0:00:04]} 2. c4 {[%emt 0:00:04]} e6 {[%emt 0:00:03]} 3. Nc3 {[%emt 0:00:04]} Bb4 {[%emt 0:00:03]} 4. a3 {[%emt 0:00:04]} Bxc3+ {[%emt 0:01:28]} 5. bxc3 {[%emt 0:00:06]} b6 {[%emt 0:05:16]} 6. f3 {[%emt 0:00:29]} d5 {[%emt 0:01:42]} 7. cxd5 {[%emt 0:00:12]} exd5 {[%emt 0:01:06]} 8. e3 {[%emt 0:00:08]} O-O {[%emt 0:04:16]} 9. Bd3 {[%emt 0:00:11]} c5 {[%emt 0:10:55]} 10. Ne2 {[%emt 0:00:26]} Ba6 {[%emt 0:00:26]} 11. O-O {[%emt 0:00:52]} Re8 {[%emt 0:00:38]} 12. Ng3 {[%emt 0:00:52]} Bxd3 {[%emt 0:01:11]} 13. Qxd3 {[%emt 0:00:06]} Nc6 {[%emt 0:00:08]} 14. Bb2 {[%emt 0:00:17]} h5 {[%emt 0:19:31]} 15. Rae1 {[%emt 0:03:19]} h4 {[%emt 0:04:05]} 16. Nf5 {[%emt 0:03:27]} Nh5 {[%emt 0:07:56]} 17. e4 {[%emt 0:11:35]} g6 {[%emt 0:05:04]} 18. Nh6+ {[%emt 0:04:09]} Kg7 {[%emt 0:00:05]} 19. Ng4 {[%emt 0:01:50]} Qg5 {[%emt 0:07:16]} 20. c4 {[%emt 0:21:01]} dxe4 {[%emt 0:13:36]} 21. dxc5+ {[%emt 0:04:23]} Kh7 {[%emt 0:00:40]} 22. Qd5 {[%emt 0:11:38]} Qxd5 {[%emt 0:01:35]} 23. cxd5 {[%emt 0:00:10]} Nd8 {[%emt 0:01:06]} 24. cxb6 {[%emt 0:03:35]} f5 {[%emt 0:01:39]} 25. Ne5 {[%emt 0:04:52]} e3 {[%emt 0:03:01]} 26. Rxe3 {[%emt 0:02:08]} axb6 {[%emt 0:00:11]} 27. Rb3 {[%emt 0:02:32]} Ra5 {[%emt 0:02:47]} 28. Rd1 {[%emt 0:04:33]} Nf4 {[%emt 0:00:36]} 29. Rxb6 {[%emt 0:01:35]} Rc5 {[%emt 0:02:44]} 30. Nd7 {[%emt 0:01:37]} Rc2 {[%emt 0:01:20]} 31. Nf6+ {[%emt 0:00:14]} Kh6 {[%emt 0:00:03]} 32. Nxe8 {[%emt 0:00:25]} Rxg2+ {[%emt 0:00:03]} 33. Kh1 {[%emt 0:00:29]} h3 {[%emt 0:00:44]} 34. Bc1 {[%emt 0:00:22]} Kg5 {[%emt 0:00:03]} 35. Rg1 {[%emt 0:00:15]} 1-0

[Event "SixDays Budapest IM-A 09-2024"]
[Site "Budapest"]
[Date "2024.09.27"]
[Round "1"]
[White "Pavan Karthikeya Varma Gunturi"]
[Black "Kwon, Sehyun"]
[Result "0-1"]
[ECO "C68"]
[WhiteElo "2056"]
[BlackElo "2248"]
[Annotator "ChessBase"]
[PlyCount "110"]
[EventDate "2024.09.24"]
[EventType "tourn"]
[EventCountry "HUN"]
[SourceTitle "playchess.com"]
[Source "ChessBase"]
[SourceQuality "1"]
[TimeControl "5400+30"]

1. e4 {[%emt 0:00:07]} e5 {[%emt 0:01:02]} 2. Nf3 {[%emt 0:00:11]} Nc6 {[%emt 0:00:12]} 3. Bb5 {[%emt 0:00:10]} a6 {[%emt 0:01:04]} 4. Bxc6 {[%emt 0:00:24]} dxc6 {[%emt 0:00:10]} 5. O-O {[%emt 0:00:47]} Qf6 {[%emt 0:00:30]} 6. d4 {[%emt 0:00:57]} exd4 {[%emt 0:00:10]} 7. Bg5 {[%emt 0:01:07]} Qd6 {[%emt 0:00:18]} 8. Nxd4 {[%emt 0:01:19]} Be7 {[%emt 0:00:54]} 9. Be3 {[%emt 0:01:29]} Nf6 {[%emt 0:00:25]} 10. f3 {[%emt 0:05:16]} c5 {[%emt 0:05:34]} 11. Ne2 {[%emt 0:05:25]} Qc6 {[%emt 0:12:09]} 12. Nbc3 {[%emt 0:03:14]} Be6 {[%emt 0:06:32]} 13. Nf4 {[%emt 0:06:44]} Rd8 {[%emt 0:08:23]} 14. Qe2 {[%emt 0:02:34]} O-O {[%emt 0:03:24]} 15. Rfd1 {[%emt 0:06:03]} Bd6 {[%emt 0:13:09]} 16. Nfd5 {[%emt 0:07:21]} Nd7 {[%emt 0:09:45]} 17. Qf2 {[%emt 0:11:36]} Kh8 {[%emt 0:05:46]} 18. Rd2 {[%emt 0:04:53]} f5 {[%emt 0:02:40]} 19. Bg5 {[%emt 0:08:39]} Rde8 {[%emt 0:00:57]} 20. Qh4 {[%emt 0:01:52]} fxe4 {[%emt 0:05:03]} 21. fxe4 {[%emt 0:00:46]} Ne5 {[%emt 0:00:53]} 22. h3 {[%emt 0:06:00]} Ng6 {[%emt 0:01:35]} 23. Qh5 {[%emt 0:00:56]} b5 {[%emt 0:01:34]} 24. Kh1 {[%emt 0:03:52]} Rf7 {[%emt 0:04:14]} 25. Rdd1 {[%emt 0:01:16]} Ref8 {[%emt 0:00:37]} 26. Ne3 {[%emt 0:02:21]} Be5 {[%emt 0:01:47]} 27. Ncd5 {[%emt 0:01:38]} Bxb2 {[%emt 0:03:28]} 28. Rab1 {[%emt 0:00:06]} Bd4 {[%emt 0:01:16]} 29. c3 {[%emt 0:02:19]} Be5 {[%emt 0:02:13]} 30. Ng4 {[%emt 0:01:56]} Bxg4 {[%emt 0:03:57]} 31. Qxg4 {[%emt 0:00:21]} Qe8 {[%emt 0:00:29]} 32. Be3 {[%emt 0:03:55]} Bd6 {[%emt 0:00:23]} 33. Bg1 {[%emt 0:02:23]} Qe5 {[%emt 0:00:26]} 34. Re1 {[%emt 0:02:29]} c6 {[%emt 0:02:20]} 35. Ne3 {[%emt 0:01:26]} Qxc3 {[%emt 0:00:43]} 36. Nf5 {[%emt 0:00:26]} Qe5 {[%emt 0:00:29]} 37. Nxd6 {[%emt 0:00:45]} Qxd6 {[%emt 0:00:09]} 38. Bh2 {[%emt 0:00:20]} Ne5 {[%emt 0:01:43]} 39. Qg5 {[%emt 0:01:59]} Re7 {[%emt 0:00:44]} 40. Rf1 {[%emt 0:02:13]} Rfe8 {[%emt 0:00:16]} 41. Rbd1 {[%emt 0:01:09]} Qe6 {[%emt 0:00:38]} 42. Rf5 {[%emt 0:01:28]} Nc4 {[%emt 0:00:16]} 43. e5 {[%emt 0:00:32]} Ne3 {[%emt 0:01:18]} 44. Rf6 {[%emt 0:01:04]} gxf6 {[%emt 0:00:48]} 45. Qxe3 {[%emt 0:00:17]} c4 {[%emt 0:00:25]} 46. Qc3 {[%emt 0:00:43]} fxe5 {[%emt 0:00:11]} 47. Re1 {[%emt 0:00:06]} Qd6 {[%emt 0:01:16]} 48. Bg3 {[%emt 0:00:29]} Re6 {[%emt 0:00:33]} 49. Re3 {[%emt 0:00:08]} c5 {[%emt 0:00:41]} 50. Rf3 {[%emt 0:00:10]} Qd4 {[%emt 0:00:23]} 51. Qe1 {[%emt 0:00:06]} e4 {[%emt 0:00:26]} 52. Rf5 {[%emt 0:00:07]} Qg7 {[%emt 0:01:26]} 53. Bh4 {[%emt 0:00:07]} e3 {[%emt 0:00:14]} 54. Rxc5 {[%emt 0:00:09]} e2 {[%emt 0:00:27]} 55. Bf2 {[%emt 0:00:11]} Rd6 {[%emt 0:00:56]} 0-1

[Event "SixDays Budapest IM-A 09-2024"]
[Site "Budapest"]
[Date "2024.09.27"]
[Round "1"]
[White "Wadifa, Ahmed"]
[Black "Boyer, Mahel"]
[Result "0-1"]
[ECO "B00"]
[WhiteElo "1988"]
[BlackElo "2489"]
[Annotator "ChessBase"]
[PlyCount "48"]
[EventDate "2024.09.24"]
[EventType "tourn"]
[EventCountry "HUN"]
[SourceTitle "playchess.com"]
[Source "ChessBase"]
[SourceQuality "1"]
[TimeControl "5400+30"]

1. e4 {[%emt 0:00:02]} Nc6 {[%emt 0:03:12]} 2. d4 {[%emt 0:00:17]} d5 {[%emt 0:00:08]} 3. e5 {[%emt 0:00:58]} Bf5 {[%emt 0:00:20]} 4. Nf3 {[%emt 0:02:27]} e6 {[%emt 0:00:23]} 5. Be2 {[%emt 0:00:31]} f6 {[%emt 0:01:54]} 6. Nh4 {[%emt 0:04:58]} fxe5 {[%emt 0:17:22]} 7. Nxf5 {[%emt 0:00:12]} exf5 {[%emt 0:00:05]} 8. dxe5 {[%emt 0:00:08]} Nxe5 {[%emt 0:00:04]} 9. O-O {[%emt 0:03:11]} Nf6 {[%emt 0:01:28]} 10. Re1 {[%emt 0:03:03]} Bd6 {[%emt 0:08:09]} 11. f4 {[%emt 0:04:50]} Bc5+ {[%emt 0:01:19]} 12. Kh1 {[%emt 0:05:21]} Ne4 {[%emt 0:02:16]} 13. Bh5+ {[%emt 0:06:42]} Ng6 {[%emt 0:06:36]} 14. Nd2 {[%emt 0:05:54]} O-O {[%emt 0:03:23]} 15. Nxe4 {[%emt 0:00:09]} fxe4 {[%emt 0:00:45]} 16. Bg4 {[%emt 0:13:28]} Qd6 {[%emt 0:04:21]} 17. g3 {[%emt 0:01:40]} Ne7 {[%emt 0:00:31]} 18. c3 {[%emt 0:01:53]} a5 {[%emt 0:03:02]} 19. Be3 {[%emt 0:03:00]} Nf5 {[%emt 0:00:58]} 20. Bxf5 {[%emt 0:02:20]} Rxf5 {[%emt 0:00:06]} 21. Bd4 {[%emt 0:00:09]} Bxd4 {[%emt 0:03:30]} 22. cxd4 {[%emt 0:00:58]} Raf8 {[%emt 0:02:15]} 23. Qb3 g5 {[%emt 0:01:13]} 24. Rxe4 {[%emt 0:07:16]} a4 {[%emt 0:00:14]} 0-1

[Event "SixDays Budapest IM-A 09-2024"]
[Site "Budapest"]
[Date "2024.09.24"]
[Round "1.1"]
[White "Pacher, Milan"]
[Black "Bashylina, Luisa"]
[Result "1-0"]
[ECO "A21"]
[WhiteElo "2343"]
[BlackElo "2124"]
[Annotator "TA"]
[PlyCount "53"]
[EventDate "2024.09.24"]
[EventType "tourn"]
[EventCountry "HUN"]
[SourceTitle "playchess.com"]
[Source "ChessBase"]
[SourceQuality "1"]
[TimeControl "5400+30"]

{[%evp 9,53,0,5,8,12,0,0,-11,0,4,2,0,0,0,0,0,28,0,121,102,81,85,215,202,273,287,278,278,317,305,720,706,796,817,799,784,940,899,927,896,949,943,895,812,956,949]} 1. c4 {[%emt 0:00:03]} e5 {[%emt 0:00:18]} 2. Nc3 {[%emt 0:00:07]} Bb4 {[%emt 0:00:10]} 3. e4 {[%emt 0:00:10]} Bxc3 {[%emt 0:00:51]} 4. dxc3 {[%emt 0:00:04]} d6 {[%emt 0:01:40]} 5. Be3 {[%emt 0:00:32]} Nf6 {[%emt 0:03:29]} 6. f3 {[%emt 0:00:06]} Be6 {[%emt 0:00:43]} 7. Qd2 {[%emt 0:01:34]} Nbd7 {[%emt 0:02:03]} 8. g4 {[%emt 0:02:17][%cal Bg2g4,Bg4g5][%mdl 32] The position is equal.} Nb6 {[%emt 0:04:09]} 9. b3 {[%emt 0:00:07]} Qe7 {[%emt 0:01:06]} 10. Ne2 {[%emt 0:02:42]} h5 {[%emt 0:09:10]} 11. g5 {[%emt 0:00:07]} Nfd7 {[%emt 0:00:20]} 12. h4 {[%emt 0:00:56]} g6 {[%emt 0:02:27]} 13. O-O-O {[%emt 0:06:01][%cal Be1c1,Bc1b1,Bb1b2][%mdl 32]} (13. Nc1 {simplifies} a5 14. a4 Nb8 15. Bxb6 cxb6 16. Be2) 13... Bxc4 {[%emt 0:09:31]} 14. bxc4 {[%emt 0:05:47]} Nxc4 {[%emt 0:00:40]} 15. Qd3 {[%emt 0:00:05]} d5 {[%emt 0:00:27] This costs Black the game.} 16. Kb1 $18 {[%emt 0:00:06]} (16. exd5 $2 {leads to mate.} Qa3+ 17. Kc2 Qb2#) 16... Nc5 {[%emt 0:15:59]} 17. Bxc5 {[%emt 0:00:28]} (17. Qxd5 $2 Nxe3 18. Qd2 Nxd1 19. Qxd1 Rd8 $19) 17... Qxc5 {[%emt 0:00:07] [#]} 18. Nc1 $1 {[%emt 0:01:43]} (18. Qxd5 $2 {loses.} Qb6+ 19. Kc2 Ne3+ 20. Kc1 Nxd5 $19) 18... Qb6+ {[%emt 0:11:55]} 19. Nb3 {[%emt 0:00:03]} a5 $2 {[%emt 0:00:24]} (19... O-O-O 20. exd5 Ne3) 20. Qxd5 {[%emt 0:00:50] White is clearly winning.} Na3+ {[%emt 0:02:27]} 21. Kb2 {[%emt 0:00:05]} O-O {[%emt 0:02:15][%cal Bh8f8,Bf8c8,Bc8c3][%mdl 32]} 22. Qc5 {[%emt 0:02:01]} a4 {[%emt 0:06:59]} 23. Qxb6 {[%emt 0:00:20]} cxb6 {[%emt 0:00:05]} 24. Nc1 {[%emt 0:00:07]} Rfc8 {[%emt 0:01:05]} 25. Kxa3 {[%emt 0:00:14]} Rxc3+ {[%emt 0:00:05]} 26. Kb2 {[%emt 0:00:06]} Rac8 {[%emt 0:00:29] [#]} 27. Rd8+ $3 {[%emt 0:00:09][%mdl 512] Weighted Error Value: White=0.06 (flawless) /Black=0.48.  Mistake:       	---       	Black=3      Inaccurate:     	White=1     	Black=2      OK:         	White=6     	Black=5      Best:        	White=3     	---        Strong:       	White=1     	---} 1-0

[Event "SixDays Budapest IM-A 09-2024"]
[Site "Budapest"]
[Date "2024.09.24"]
[Round "1.2"]
[White "Wadifa, Ahmed"]
[Black "Pavan Karthikeya Varma Gunturi"]
[Result "1-0"]
[ECO "B85"]
[WhiteElo "1988"]
[BlackElo "2056"]
[Annotator "RC"]
[PlyCount "63"]
[EventDate "2024.09.24"]
[EventType "tourn"]
[EventCountry "HUN"]
[SourceTitle "playchess.com"]
[Source "ChessBase"]
[SourceQuality "1"]
[TimeControl "5400+30"]

1. e4 {[%emt 0:00:07]} c5 {[%emt 0:00:14]} 2. Nf3 {[%emt 0:00:05]} e6 {[%emt 0:00:08]} 3. d4 {[%emt 0:00:04]} cxd4 {[%emt 0:00:05]} 4. Nxd4 {[%emt 0:00:03]} Nc6 {[%emt 0:00:23]} 5. Nc3 {[%emt 0:00:35]} Qc7 {[%emt 0:00:17]} 6. Be2 {[%emt 0:02:01]} Nf6 {[%emt 0:01:57]} 7. O-O {[%emt 0:00:47]} a6 {[%emt 0:01:39]} 8. Be3 {[%emt 0:03:02]} Be7 {[%emt 0:05:26]} 9. f4 {[%emt 0:01:54]} d6 {[%emt 0:03:52]} 10. Qe1 {[%emt 0:02:53]} O-O {[%emt 0:05:08]} 11. Qg3 {[%emt 0:03:09]} Bd7 {[%emt 0:10:00]} 12. Rad1 {[%emt 0:09:48]} Kh8 {[%emt 0:04:52]} 13. Nxc6 {[%emt 0:06:01]} Bxc6 {[%emt 0:05:13]} 14. Bd4 {[%emt 0:00:41]} Rg8 {[%emt 0:03:03]} 15. Bd3 {[%emt 0:04:35]} Rad8 {[%emt 0:09:19]} 16. Kh1 {[%emt 0:08:07]} Qa5 {[%emt 0:05:08]} 17. e5 {[%emt 0:05:46]} dxe5 {[%emt 0:01:26]} 18. Bxe5 {[%emt 0:00:12]} h6 {[%emt 0:03:39]} 19. Rde1 {[%emt 0:05:52]} Nd7 {[%emt 0:08:08]} 20. f5 {[%emt 0:05:33]} Nxe5 {[%emt 0:01:52]} 21. Rxe5 {[%emt 0:00:03]} Qb4 {[%emt 0:02:59]} 22. fxe6 {[%emt 0:01:27]} f6 {[%emt 0:03:49]} 23. Qg6 {[%emt 0:13:57]} Rxd3 {[%emt 0:00:10]} 24. Rh5 {[%emt 0:00:03]} Bxg2+ {[%emt 0:09:22]} 25. Qxg2 {[%emt 0:05:29]} Rd4 {[%emt 0:05:50]} 26. Nd5 {[%emt 0:01:27]} Qd6 {[%emt 0:03:16]} 27. Rg1 {[%emt 0:00:35]} g5 {[%emt 0:01:11]} 28. Rxh6+ {[%emt 0:03:38]} Kg7 {[%emt 0:00:28]} 29. Nxe7 {[%emt 0:00:19]} Qxe7 {[%emt 0:00:07]} 30. Qh3 {[%emt 0:00:16]} Kf8 {[%emt 0:01:03]} 31. Rh7 {[%emt 0:00:08]} Rg7 {[%emt 0:01:51]} 32. Qh6 {[%emt 0:00:08]} 1-0

[Event "SixDays Budapest IM-A 09-2024"]
[Site "Budapest"]
[Date "2024.09.24"]
[Round "1.3"]
[White "Kao, Jamison Edrich"]
[Black "Bashirov, Kemal"]
[Result "1-0"]
[ECO "B94"]
[WhiteElo "2125"]
[BlackElo "2328"]
[Annotator "RC"]
[PlyCount "129"]
[EventDate "2024.09.24"]
[EventType "tourn"]
[EventCountry "HUN"]
[SourceTitle "playchess.com"]
[Source "ChessBase"]
[SourceQuality "1"]
[TimeControl "5400+30"]

1. e4 {[%emt 0:00:13]} c5 {[%emt 0:00:05]} 2. Nf3 {[%emt 0:00:02]} d6 {[%emt 0:00:03]} 3. d4 {[%emt 0:00:03]} cxd4 {[%emt 0:00:03]} 4. Nxd4 {[%emt 0:00:03]} Nf6 {[%emt 0:00:03]} 5. Nc3 {[%emt 0:00:04]} a6 {[%emt 0:00:02]} 6. Bg5 {[%emt 0:00:03]} Nbd7 {[%emt 0:00:03]} 7. Qe2 {[%emt 0:00:04]} h6 {[%emt 0:01:35]} 8. Bh4 {[%emt 0:00:04]} g6 {[%emt 0:00:05]} 9. O-O-O {[%emt 0:00:11]} e5 {[%emt 0:14:09]} 10. Nb3 {[%emt 0:01:35]} Qc7 {[%emt 0:02:19]} 11. Kb1 {[%emt 0:07:07]} b5 {[%emt 0:08:53]} 12. g4 {[%emt 0:04:50]} Bg7 {[%emt 0:06:44]} 13. g5 {[%emt 0:01:00]} hxg5 {[%emt 0:04:37]} 14. Bxg5 {[%emt 0:00:09]} Nb6 {[%emt 0:00:52]} 15. Qd2 {[%emt 0:14:50]} b4 {[%emt 0:14:36]} 16. Bxf6 {[%emt 0:04:39]} Bxf6 {[%emt 0:05:57]} 17. Qxd6 {[%emt 0:00:51]} Qxd6 {[%emt 0:00:10]} 18. Rxd6 {[%emt 0:00:04]} bxc3 {[%emt 0:01:33]} 19. Rxf6 {[%emt 0:02:49]} Be6 {[%emt 0:13:01]} 20. Nc5 {[%emt 0:05:54]} Ke7 {[%emt 0:07:35]} 21. Rf3 {[%emt 0:01:15]} cxb2 {[%emt 0:01:24]} 22. Nxe6 {[%emt 0:01:26]} Kxe6 {[%emt 0:00:05]} 23. Rb3 {[%emt 0:00:44]} Rhb8 {[%emt 0:01:00]} 24. Kxb2 {[%emt 0:03:02]} Na4+ {[%emt 0:04:08]} 25. Kc1 {[%emt 0:00:22]} Nc5 {[%emt 0:03:55]} 26. Bc4+ {[%emt 0:00:13]} Ke7 {[%emt 0:00:14]} 27. Re3 {[%emt 0:05:49]} Rb4 {[%emt 0:00:56]} 28. Bd5 Rab8 {[%emt 0:03:19]} 29. Rhe1 {[%emt 0:03:07]} Rh8 {[%emt 0:03:25]} 30. Rc3 {[%emt 0:05:37]} Ne6 {[%emt 0:01:27]} 31. h3 {[%emt 0:02:37]} Rhb8 {[%emt 0:01:41]} 32. Bxe6 {[%emt 0:04:49]} fxe6 {[%emt 0:00:32]} 33. Rb3 {[%emt 0:01:37]} Rxb3 {[%emt 0:00:47]} 34. axb3 {[%emt 0:00:10]} Rf8 {[%emt 0:00:02]} 35. Rg1 {[%emt 0:00:38]} Rxf2 {[%emt 0:01:41]} 36. Rxg6 {[%emt 0:00:08]} Kd6 {[%emt 0:00:12]} 37. Rg8 {[%emt 0:06:07]} Rf3 {[%emt 0:01:11]} 38. Ra8 Rxh3 {[%emt 0:00:20]} 39. Rxa6+ {[%emt 0:00:40]} Kc5 {[%emt 0:00:18]} 40. Kb2 {[%emt 0:05:56]} Re3 {[%emt 0:00:29]} 41. Rxe6 {[%emt 0:04:26]} Rxe4 {[%emt 0:00:29]} 42. Kc3 {[%emt 0:00:29]} Kd5 {[%emt 0:00:21]} 43. Re8 {[%emt 0:00:59]} Rh4 {[%emt 0:00:16]} 44. Rd8+ {[%emt 0:03:26]} Kc5 {[%emt 0:01:06]} 45. b4+ {[%emt 0:02:16]} Kc6 {[%emt 0:00:03]} 46. Kb3 {[%emt 0:00:11]} e4 {[%emt 0:00:44]} 47. c3 {[%emt 0:00:30]} Rh3 {[%emt 0:00:53]} 48. Kc4 {[%emt 0:00:44]} e3 {[%emt 0:00:29]} 49. Re8 {[%emt 0:00:11]} Rh4+ {[%emt 0:00:35]} 50. Kd3 {[%emt 0:00:16]} Kb5 {[%emt 0:00:06]} 51. Rxe3 {[%emt 0:00:30]} Ka4 {[%emt 0:00:04]} 52. Re4 {[%emt 0:00:33]} Rh3+ {[%emt 0:00:12]} 53. Kc4 {[%emt 0:00:25]} Rh8 {[%emt 0:00:09]} 54. Re5 {[%emt 0:01:23]} Rh4+ {[%emt 0:00:04]} 55. Kc5 {[%emt 0:01:08]} Rh3 {[%emt 0:00:05]} 56. c4 {[%emt 0:00:50]} Rh8 {[%emt 0:00:02]} 57. b5 {[%emt 0:01:14]} Rc8+ {[%emt 0:00:12]} 58. Kd6 {[%emt 0:01:06]} Ka5 {[%emt 0:00:21]} 59. Rc5 {[%emt 0:00:11]} Rh8 {[%emt 0:00:18]} 60. Kc7 {[%emt 0:01:06]} Rh7+ {[%emt 0:00:20]} 61. Kc6 {[%emt 0:00:10]} Rh6+ {[%emt 0:00:23]} 62. Kb7 {[%emt 0:00:06]} Rh7+ {[%emt 0:00:13]} 63. Rc7 {[%emt 0:00:08]} Rh6 {[%emt 0:00:03]} 64. Ka7 {[%emt 0:00:11]} Rg6 {[%emt 0:00:58]} 65. b6 {[%emt 0:00:40]} 1-0